fUSD/lending_fUSD_20251130
["ID","MTS","AMOUNT","RATE_DAILY","PERIOD"]
[395188354,1764528639464,-1000.0,0.00014191,2]
[395188355,1764528639473,-878.74,0.0001426,2]
[395188357,1764528639483,-231.83347088,0.0001429,2]
[395188359,1764528639493,-2243.06,0.0001429,2]
[395188361,1764528639502,-9489.6074307,0.00014314,2]
[395188362,1764528639516,-14092.94288657,0.00014314,2]
[395188363,1764528639526,-600.0,0.00014365,2]
[395188364,1764528639536,-166.66,0.00014482,2]
[395188365,1764528639546,-150.0,0.00014493,2]
[395188366,1764528639556,-151.0,0.00014521,2]
[395188367,1764528639566,-878.74,0.00014534,2]
[395188368,1764528639576,-19643.88,0.00014607,2]
[395188369,1764528639585,-500.0,0.00014631,2]
[395188370,1764528639595,-200.0,0.00014631,2]
[395188371,1764528639605,-200.0,0.00014631,2]
[395188372,1764528639614,-300.0,0.00014634,2]
[395188373,1764528639623,-195.0,0.00014634,2]
[395188374,1764528639633,-9489.6074307,0.00014637,2]
[395188375,1764528639642,-14092.94288657,0.00014637,2]
[395188376,1764528639652,-600.0,0.00014639,2]
[395188377,1764528639663,-195.0,0.00014682,2]
[395188378,1764528639672,-195.0,0.00014682,2]
[395188379,1764528639681,-195.0,0.00014682,2]
[395188380,1764528639691,-195.0,0.00014682,2]
[395188381,1764528639701,-250.0,0.00014682,2]
[395188382,1764528639711,-166.66,0.0001478,2]
[395188383,1764528639720,-878.74,0.00014808,2]
[395188384,1764528639730,-600.0,0.00014913,2]
[395188385,1764528639740,-9489.6074307,0.00014961,2]
[395188386,1764528639750,-14092.94288657,0.00014961,2]
[395188387,1764528639759,-500.0,0.00014999,2]
[395188388,1764528639769,-500.0,0.00014999,2]
[395188389,1764528639780,-500.0,0.00014999,2]
[395188390,1764528639789,-500.0,0.00014999,2]
[395188391,1764528639799,-500.0,0.00014999,2]
[395188392,1764528639809,-518.58330245,0.00014999,2]
[395188393,1764528639818,-452.24725783,0.00014999,2]
[395188394,1764528639828,-500.0,0.00014999,2]
[395188395,1764528639837,-500.0,0.00014999,2]
[395188396,1764528639847,-2751.0,0.00015052,2]
[395188397,1764528639857,-209.83,0.00015068,2]
[395188398,1764528639866,-151.0,0.00015069,2]
[395188399,1764528639876,-166.66,0.00015079,2]
[395188400,1764528639886,-1000.0,0.00015079,2]
[395188401,1764528639896,-878.74,0.00015082,2]
[395188402,1764528639906,-255.0,0.00015105,2]
[395188403,1764528639915,-500.0,0.00015179,2]
[395188404,1764528639925,-200.0,0.00015179,2]
[395188405,1764528639935,-200.0,0.00015179,2]
[395188406,1764528639944,-600.0,0.00015187,2]
[395188407,1764528639954,-355.40259464,0.00015256,2]
[395188408,1764528639964,-9489.6074307,0.00015284,2]
[395188409,1764528639974,-14092.94288657,0.00015284,2]
[395188410,1764528639984,-150.0,0.00015288,2]
[395188411,1764528639994,-150.0,0.00015288,2]
[395188412,1764528640004,-150.0,0.00015288,2]
[395188413,1764528640014,-150.0,0.00015288,2]
[395188414,1764528640023,-150.0,0.00015288,2]
[395188415,1764528640033,-150.37128175,0.00015288,2]
[395188416,1764528640043,-150.0,0.00015288,2]
[395188417,1764528640052,-150.0,0.00015288,2]
[395188418,1764528640066,-157.84068384,0.00015288,2]
[395188419,1764528640075,-150.0,0.00015288,2]
[395188420,1764528640085,-150.0,0.00015288,2]
[395188421,1764528640094,-150.0,0.00015288,2]
[395188422,1764528640104,-150.0,0.0001531,2]
[395188423,1764528640113,-420.0,0.00015322,2]
[395188424,1764528640123,-150.0,0.00015333,2]
[395188425,1764528640133,-316.43001113,0.00015351,2]
[395188426,1764528640142,-150.0,0.00015356,2]
[395188427,1764528640152,-878.74,0.00015356,2]
[395188428,1764528640161,-150.0,0.00015369,2]
[395188429,1764528640171,-150.0,0.00015373,2]
[395188431,1764528640180,-166.66,0.00015377,2]
[395188432,1764528640190,-150.0,0.00015378,2]
[395188433,1764528640200,-150.0,0.00015388,2]
[395188434,1764528640211,-150.0,0.00015394,2]
[395188435,1764528640220,-150.0,0.00015401,2]
[395188436,1764528640230,-150.0,0.00015409,2]
[395188437,1764528640239,-150.0,0.00015424,2]
[395188438,1764528640249,-150.0,0.00015446,2]
[395188439,1764528640258,-150.0,0.00015449,2]
[395188440,1764528640267,-150.0,0.00015458,2]
[395188441,1764528640277,-150.0,0.00015458,2]
[395188442,1764528640287,-600.0,0.00015461,2]
[395188443,1764528640297,-150.0,0.00015469,2]
[395188444,1764528640306,-150.0,0.00015488,2]
[395188445,1764528640316,-150.0,0.00015492,2]
[395188446,1764528640325,-150.0,0.000155,2]
[395188447,1764528640335,-150.0,0.00015514,2]
[395188449,1764528640345,-355.40259459,0.0001553,2]
[395188451,1764528640355,-150.0,0.0001553,2]
[395188453,1764528640364,-150.0,0.0001553,2]
[395188455,1764528640373,-150.0,0.0001553,2]
[395188457,1764528640382,-150.0,0.00015537,2]
[395188459,1764528640392,-150.0,0.00015542,2]
[395188461,1764528640401,-150.0,0.00015559,2]
[395188462,1764528640410,-150.0,0.00015582,2]
[395188464,1764528640420,-150.0,0.00015587,2]
[395188465,1764528640429,-150.0,0.00015605,2]
[395188467,1764528640441,-150.0,0.00015606,2]
[395188468,1764528640451,-9489.6074307,0.00015607,2]
[395188470,1764528640460,-14092.94288657,0.00015607,2]
[395188496,1764528640841,-150.0,0.00015611,2]
[395188498,1764528640852,-151.0,0.00015617,2]
[395188500,1764528640861,-150.0,0.00015627,2]
[395188501,1764528640870,-150.0,0.00015627,2]
[395188503,1764528640879,-150.0,0.00015627,2]
[395188505,1764528640888,-878.74,0.0001563,2]
[395188506,1764528640899,-150.0,0.0001565,2]
[395188508,1764528640908,-150.0,0.00015652,2]
[395188510,1764528640918,-150.0,0.00015673,2]
[395188511,1764528640926,-166.66,0.00015676,2]
[395188513,1764528640936,-150.0,0.00015687,2]
[395188515,1764528640945,-150.0,0.00015692,2]
[395188516,1764528640955,-150.0,0.00015695,2]
[395188518,1764528640964,-150.0,0.00015712,2]
[395188520,1764528640973,-150.0,0.00015712,2]
[395188521,1764528640982,-150.0,0.00015712,2]
[395188523,1764528640991,-150.0,0.00015718,2]
[395188525,1764528641000,-500.0,0.00015727,2]
[395188526,1764528641010,-200.0,0.00015727,2]
[395188528,1764528641019,-200.0,0.00015727,2]
[395188530,1764528641028,-600.0,0.00015735,2]
[395188531,1764528641037,-150.0,0.00015741,2]
[395188533,1764528641046,-150.0,0.00015763,2]
[395188535,1764528641056,-150.0,0.00015773,2]
[395188536,1764528641065,-150.0,0.00015773,2]
[395188538,1764528641076,-150.0,0.00015773,2]
[395188539,1764528641085,-150.0,0.00015786,2]
[395188541,1764528641096,-150.0,0.00015787,2]
[395188543,1764528641106,-150.0,0.00015797,2]
[395188544,1764528641115,-150.0,0.00015797,2]
[395188546,1764528641124,-355.40259459,0.00015804,2]
[395188548,1764528641134,-150.0,0.00015809,2]
[395188549,1764528641143,-150.0,0.00015818,2]
[395188551,1764528641152,-150.0,0.00015831,2]
[395188553,1764528641162,-150.0,0.00015854,2]
[395188554,1764528641171,-150.0,0.00015854,2]
[395188556,1764528641179,-150.0,0.00015854,2]
[395188558,1764528641188,-150.0,0.00015877,2]
[395188559,1764528641198,-150.0,0.00015882,2]
[395188561,1764528641207,-150.0,0.00015887,2]
[395188563,1764528641216,-150.0,0.00015894,2]
[395188564,1764528641226,-150.0,0.00015899,2]
[395188566,1764528641235,-1000.20561976,0.000159,2]
[395188568,1764528641244,-1000.20561976,0.000159,2]
[395188569,1764528641253,-1000.20561976,0.000159,2]
[395188571,1764528641262,-1000.20561976,0.000159,2]
[395188573,1764528641270,-878.8,0.00015904,2]
[395188574,1764528641279,-150.0,0.00015922,2]
[395188576,1764528641288,-150.0,0.00015925,2]
[395188578,1764528641297,-9489.6074307,0.0001593,2]
[395188579,1764528641306,-14092.94288657,0.0001593,2]
[395188581,1764528641315,-150.0,0.00015935,2]
[395188582,1764528641324,-150.0,0.00015944,2]
[395188584,1764528641333,-150.0,0.00015967,2]
[395188586,1764528641342,-150.0,0.00015967,2]
[395188587,1764528641353,-150.0,0.00015967,2]
[395188588,1764528641362,-500.0,0.00015973,2]
[395188590,1764528641371,-500.0,0.00015973,2]
[395188592,1764528641380,-172.14260256,0.00015973,2]
[395188593,1764528641389,-174.27937181,0.00015973,2]
[395188595,1764528641398,-565.90233254,0.00015973,2]
[395188597,1764528641407,-507.35080236,0.00015973,2]
[395188599,1764528641417,-500.0,0.00015973,2]
[395188601,1764528641427,-500.0,0.00015973,2]
[395188603,1764528641436,-500.0,0.00015973,2]
[395188605,1764528641445,-161.07388452,0.00015973,2]
[395188607,1764528641454,-500.0,0.00015973,2]
[395188609,1764528641463,-500.0,0.00015973,2]
[395188611,1764528641472,-157.2860755,0.00015973,2]
[395188613,1764528641481,-500.0,0.00015973,2]
[395188615,1764528641490,-501.42223441,0.00015973,2]
[395188616,1764528641499,-500.0,0.00015973,2]
[395188617,1764528641508,-500.0,0.00015973,2]
[395188618,1764528641518,-500.0,0.00015973,2]
[395188619,1764528641528,-500.0,0.00015973,2]
[395188620,1764528641537,-500.0,0.00015973,2]
[395188621,1764528641546,-500.0,0.00015973,2]
[395188622,1764528641555,-500.0,0.00015973,2]
[395188623,1764528641564,-500.0,0.00015973,2]
[395188624,1764528641573,-500.0,0.00015973,2]
[395188625,1764528641582,-500.0,0.00015973,2]
[395188626,1764528641591,-500.0,0.00015973,2]
[395188627,1764528641600,-622.74851177,0.00015973,2]
[395188628,1764528641609,-500.0,0.00015973,2]
[395188629,1764528641619,-150.0,0.00015987,2]
[395188630,1764528641628,-150.0,0.0001599,2]
[395188631,1764528641637,-500.0,0.00015999,2]
[395188632,1764528641646,-500.0,0.00015999,2]
[395188633,1764528641655,-500.0,0.00015999,2]
[395188634,1764528641664,-240.87581222,0.00015999,2]
[395188635,1764528641673,-500.0,0.00015999,2]
[395188636,1764528641683,-500.0,0.00015999,2]
[395188637,1764528641692,-500.0,0.00015999,2]
[395188638,1764528641701,-500.0,0.00015999,2]
[395188639,1764528641710,-500.0,0.00015999,2]
[395188640,1764528641720,-500.0,0.00015999,2]
[395188641,1764528641729,-500.0,0.00015999,2]
[395188642,1764528641738,-500.0,0.00015999,2]
[395188644,1764528641747,-500.0,0.00015999,2]
[395188645,1764528641756,-500.0,0.00015999,2]
[395188647,1764528641765,-500.0,0.00015999,2]
[395188649,1764528641774,-4211.77765298,0.00016009,2]
[395188651,1764528641784,-150.0,0.00016012,2]
[395188653,1764528641792,-150.0,0.00016016,2]
[395188655,1764528641801,-150.0,0.00016016,2]
[395188657,1764528641811,-150.0,0.00016016,2]
[395188659,1764528641820,-150.0,0.00016031,2]
[395188661,1764528641829,-150.0,0.00016035,2]
[395188663,1764528641838,-150.0,0.00016052,2]
[395188665,1764528641849,-150.0,0.00016058,2]
[395188667,1764528641859,-355.40259459,0.00016078,2]
[395188669,1764528641868,-150.0,0.0001608,2]
[395188672,1764528641878,-150.0,0.00016087,2]
[395188674,1764528641887,-150.0,0.00016097,2]
[395188676,1764528641896,-150.0,0.00016103,2]
[395188678,1764528641906,-1172.22,0.00016116,2]
[395188680,1764528641916,-2959.98,0.00016116,2]
[395188682,1764528641925,-902.11,0.00016116,2]
[395188684,1764528641935,-2942.24,0.00016116,2]
[395188685,1764528641944,-264.05,0.00016116,2]
[395188687,1764528641953,-9999.99,0.00016116,2]
[395188689,1764528641962,-1728.71,0.00016116,2]
[395188691,1764528641971,-9999.99,0.00016116,2]
[395188694,1764528641981,-327.72,0.00016116,2]
[395188696,1764528641991,-150.99,0.00016116,2]
[395188698,1764528642000,-9999.99,0.00016116,2]
[395188700,1764528642010,-999.99,0.00016116,2]
[395188702,1764528642019,-2116.57,0.00016116,2]
[395188704,1764528642028,-9999.99,0.00016116,2]
[395188706,1764528642037,-30433.84,0.00016116,2]
[395188707,1764528642046,-150.99,0.00016116,2]
[395188709,1764528642055,-9999.99,0.00016116,2]
[395188711,1764528642064,-150.0,0.00016126,2]
[395188714,1764528642075,-150.0,0.00016137,2]
[395188716,1764528642086,-150.0,0.00016137,2]
[395188717,1764528642095,-150.0,0.00016137,2]
[395188719,1764528642105,-150.0,0.00016137,2]
[395188721,1764528642116,-150.0,0.00016137,2]
[395188723,1764528642126,-150.0,0.00016148,2]
[395188726,1764528642135,-151.0,0.00016165,2]
[395188727,1764528642144,-150.0,0.00016171,2]
[395188730,1764528642153,-150.0,0.00016177,2]
[395188732,1764528642163,-150.0,0.00016187,2]
[395188734,1764528642172,-150.0,0.00016194,2]
[395188736,1764528642181,-312.53268767,0.00016195,2]
[395188738,1764528642191,-150.0,0.00016216,2]
[395188740,1764528642200,-150.0,0.00016222,2]
[395188742,1764528642209,-150.0,0.00016239,2]
[395188743,1764528642219,-150.0,0.00016243,2]
[395188746,1764528642228,-164.38079063,0.00016243,2]
[395188748,1764528642238,-331.3,0.0001625,2]
[395188750,1764528642247,-9489.6074307,0.00016254,2]
[395188752,1764528642257,-14092.94288657,0.00016254,2]
[395188754,1764528642266,-150.0,0.00016258,2]
[395188755,1764528642275,-150.0,0.00016258,2]
[395188757,1764528642284,-150.0,0.00016258,2]
[395188759,1764528642294,-150.0,0.00016262,2]
[395188762,1764528642304,-500.0,0.00016275,2]
[395188764,1764528642313,-200.0,0.00016275,2]
[395188766,1764528642324,-200.0,0.00016275,2]
[395188768,1764528642334,-150.0,0.00016284,2]
[395188770,1764528642343,-150.0,0.00016287,2]
[395188772,1764528642352,-150.0,0.00016307,2]
[395188774,1764528642361,-150.0,0.00016307,2]
[395188776,1764528642370,-150.0,0.00016307,2]
[395188778,1764528642379,-433.0,0.00016308,2]
[395188780,1764528642390,-150.0,0.00016329,2]
[395188782,1764528642399,-150.0,0.00016339,2]
[395188784,1764528642408,-150.0,0.00016349,2]
[395188786,1764528642416,-355.40259459,0.00016352,2]
[395188788,1764528642426,-150.0,0.00016352,2]
[395188790,1764528642436,-150.0,0.00016375,2]
[395188792,1764528642445,-150.0,0.0001638,2]
[395188794,1764528642454,-150.0,0.00016387,2]
[395188796,1764528642463,-150.0,0.00016392,2]
[395188798,1764528642472,-150.0,0.00016397,2]
[395188800,1764528642482,-150.0,0.0001642,2]
[395188802,1764528642492,-150.0,0.0001642,2]
[395188804,1764528642500,-150.0,0.0001642,2]
[395188806,1764528642511,-500.0,0.00016438,2]
[395188808,1764528642521,-380.0158967,0.00016438,2]
[395188810,1764528642532,-5434.75,0.00016438,2]
[395188812,1764528642543,-209.83,0.00016438,2]
[395188814,1764528642553,-163.9,0.0001644,2]
[395188817,1764528642564,-163.9,0.0001644,2]
[395188819,1764528642574,-163.9,0.0001644,2]
[395188821,1764528642585,-150.0,0.00016443,2]
[395188823,1764528642595,-150.0,0.00016455,2]
[395188825,1764528642605,-150.0,0.00016465,2]
[395188827,1764528642615,-150.0,0.00016477,2]
[395188829,1764528642624,-150.0,0.00016477,2]
[395188830,1764528642634,-150.0,0.00016487,2]
[395188832,1764528642644,-150.0,0.00016488,2]
[395188834,1764528642653,-150.0,0.00016501,2]
[395188836,1764528642663,-150.0,0.00016501,2]
[395188838,1764528642671,-150.0,0.00016501,2]
[395188840,1764528642681,-150.0,0.00016511,2]
[395188842,1764528642690,-500.0,0.00016521,2]
[395188844,1764528642700,-1007.74563265,0.00016521,2]
[395188846,1764528642710,-1000.0,0.00016521,2]
[395188848,1764528642720,-1000.0,0.00016521,2]
[395188850,1764528642729,-1000.0,0.00016521,2]
[395188852,1764528642739,-1000.0,0.00016521,2]
[395188854,1764528642748,-1000.0,0.00016521,2]
[395188856,1764528642757,-500.0,0.00016521,2]
[395188858,1764528642766,-506.31065896,0.00016521,2]
[395188860,1764528642776,-696.8967906,0.00016521,2]
[395188862,1764528642785,-1000.0,0.00016521,2]
[395188864,1764528642794,-1000.0,0.00016521,2]
[395188866,1764528642803,-1000.0,0.00016521,2]
[395188868,1764528642812,-1000.0,0.00016521,2]
[395188870,1764528642821,-457.90842426,0.00016521,2]
[395188872,1764528642830,-1000.0,0.00016521,2]
[395188874,1764528642839,-1000.0,0.00016521,2]
[395188876,1764528642848,-1000.0,0.00016521,2]
[395188878,1764528642856,-160.8098875,0.00016521,2]
[395188880,1764528642867,-150.0,0.00016533,2]
[395188882,1764528642876,-150.0,0.00016556,2]
[395188884,1764528642886,-150.0,0.00016562,2]
[395188886,1764528642896,-150.0,0.00016562,2]
[395188888,1764528642905,-150.0,0.00016562,2]
[395188890,1764528642915,-9489.6074307,0.00016577,2]
[395188892,1764528642924,-14092.94288657,0.00016577,2]
[395188894,1764528642933,-150.0,0.00016579,2]
[395188896,1764528642942,-150.0,0.00016582,2]
[395188898,1764528642952,-150.0,0.00016587,2]
[395188900,1764528642961,-150.0,0.00016601,2]
[395188901,1764528642970,-150.0,0.00016622,2]
[395188903,1764528642979,-150.0,0.00016624,2]
[395188905,1764528642989,-355.40259459,0.00016626,2]
[395188907,1764528642998,-250.0,0.00016646,2]
[395188909,1764528643008,-150.0,0.00016647,2]
[395188911,1764528643017,-150.0,0.00016647,2]
[395188914,1764528643027,-150.0,0.00016647,2]
[395188916,1764528643039,-150.0,0.00016663,2]
[395188918,1764528643049,-150.0,0.00016668,2]
[395188920,1764528643058,-150.0,0.00016669,2]
[395188922,1764528643068,-150.0,0.00016687,2]
[395188924,1764528643080,-150.0,0.00016692,2]
[395188926,1764528643089,-212.58741405,0.0001671,2]
[395188928,1764528643098,-151.0,0.00016713,2]
[395188930,1764528643107,-150.0,0.00016715,2]
[395188932,1764528643116,-150.0,0.00016732,2]
[395188934,1764528643125,-150.0,0.00016737,2]
[395188935,1764528643134,-150.0,0.00016744,2]
[395188937,1764528643144,-150.0,0.00016744,2]
[395188940,1764528643153,-150.0,0.00016744,2]
[395188942,1764528643162,-212.58741403,0.00016748,2]
[395188944,1764528643172,-1000.0,0.00016754,2]
[395188945,1764528643181,-150.0,0.0001676,2]
[395188947,1764528643191,-150.0,0.00016774,2]
[395188950,1764528643200,-168.0,0.00016776,2]
[395188951,1764528643209,-150.0,0.00016782,2]
[395188953,1764528643218,-587.0,0.00016786,2]
[395188955,1764528643227,-212.58741403,0.00016786,2]
[395188957,1764528643237,-150.0,0.00016786,2]
[395188960,1764528643246,-7649.1746,0.000168,2]
[395188962,1764528643256,-150.0,0.00016805,2]
[395188964,1764528643265,-151.0,0.00016807,2]
[395188966,1764528643274,-3262.7932033,0.0001681,2]
[395188968,1764528643283,-960.330511,0.0001681,2]
[395188970,1764528643293,-285333.3119827,0.0001681,2]
[395188972,1764528643302,-615087.554965,0.0001681,2]
[395188974,1764528643312,-25989.6234543,0.0001681,2]
[395188975,1764528643322,-3262.7932032,0.0001681,2]
[395188978,1764528643332,-6525.5864063,0.0001681,2]
[395188980,1764528643343,-150.0,0.00016816,2]
[395188982,1764528643352,-150.0,0.00016816,2]
[395188984,1764528643362,-207.4,0.00016822,2]
[395188986,1764528643371,-506.31894944,0.00016823,2]
[395188988,1764528643388,-200.0,0.00016823,2]
[395188991,1764528643400,-200.0,0.00016823,2]
[395188993,1764528643410,-212.58741403,0.00016824,2]
[395188995,1764528643420,-150.0,0.00016825,2]
[395188997,1764528643430,-150.0,0.00016828,2]
[395188999,1764528643440,-150.0,0.0001685,2]
[395189001,1764528643450,-168.0,0.00016857,2]
[395189003,1764528643460,-212.58741403,0.00016862,2]
[395189005,1764528643469,-200.0,0.00016864,2]
[395189007,1764528643479,-150.0,0.00016865,2]
[395189009,1764528643489,-248.0,0.00016873,2]
[395189011,1764528643499,-150.0,0.00016873,2]
[395189013,1764528643508,-150.0,0.0001688,2]
[395189015,1764528643518,-150.0,0.00016886,2]
[395189017,1764528643527,-150.0,0.00016896,2]
[395189019,1764528643536,-2647.7093,0.000169,2]
[395189021,1764528643546,-9489.6074307,0.000169,2]
[395189023,1764528643556,-14092.94288657,0.000169,2]
[395189025,1764528643565,-355.40259459,0.000169,2]
[395189028,1764528643575,-224.96254147,0.000169,2]
[395189030,1764528643585,-250.06247636,0.000169,2]
[395189032,1764528643594,-650.12169603,0.000169,2]
[395189034,1764528643604,-279.50113249,0.000169,2]
[395189036,1764528643613,-212.58741403,0.000169,2]
[395189038,1764528643623,-500.0,0.000169,2]
[395189040,1764528643632,-500.0,0.000169,2]
[395189042,1764528643641,-500.0,0.000169,2]
[395189044,1764528643651,-500.0,0.000169,2]
[395189046,1764528643660,-500.0,0.000169,2]
[395189048,1764528643669,-500.0,0.000169,2]
[395189050,1764528643679,-500.0,0.000169,2]
[395189052,1764528643689,-500.0,0.000169,2]
[395189054,1764528643699,-500.0,0.000169,2]
[395189056,1764528643709,-500.0,0.000169,2]
[395189058,1764528643718,-500.0,0.000169,2]
[395189060,1764528643727,-500.0,0.000169,2]
[395189062,1764528643737,-500.0,0.000169,2]
[395189064,1764528643748,-500.0,0.000169,2]
[395189066,1764528643757,-500.0,0.000169,2]
[395189068,1764528643766,-500.0,0.000169,2]
[395189070,1764528643775,-197.92719606,0.000169,2]
[395189072,1764528643785,-150.0,0.00016901,2]
[395189074,1764528643794,-150.0,0.00016905,2]
[395189076,1764528643803,-150.0,0.00016918,2]
[395189078,1764528643812,-150.0,0.00016941,2]
[395189080,1764528643822,-150.0,0.00016964,2]
[395189082,1764528643831,-500.0,0.00016972,2]
[395189084,1764528643841,-500.0,0.00016972,2]
[395189086,1764528643851,-500.0,0.00016972,2]
[395189088,1764528643860,-500.0,0.00016972,2]
[395189090,1764528643870,-500.0,0.00016972,2]
[395189092,1764528643880,-412.69296363,0.00016972,2]
[395189095,1764528643889,-540.71917716,0.00016972,2]
[395189096,1764528643899,-500.0,0.00016972,2]
[395189098,1764528643908,-500.0,0.00016973,2]
[395189101,1764528643918,-507.2295556,0.00016973,2]
[395189103,1764528643928,-500.0,0.00016973,2]
[395189105,1764528643939,-500.0,0.00016973,2]
[395189107,1764528643949,-500.0,0.00016973,2]
[395189109,1764528643958,-500.0,0.00016973,2]
[395189110,1764528643968,-500.0,0.00016973,2]
[395189112,1764528643977,-500.0,0.00016973,2]
[395189113,1764528643987,-500.0,0.00016973,2]
[395189115,1764528643996,-500.0,0.00016973,2]
[395189117,1764528644007,-500.84139495,0.00016973,2]
[395189119,1764528644016,-162.090508,0.00016973,2]
[395189121,1764528644025,-500.0,0.00016973,2]
[395189123,1764528644035,-500.0,0.00016973,2]
[395189125,1764528644044,-166.09514249,0.00016973,2]
[395189127,1764528644055,-500.0,0.00016973,2]
[395189129,1764528644065,-500.0,0.00016973,2]
[395189131,1764528644075,-500.0,0.00016973,2]
[395189133,1764528644084,-507.02104113,0.00016973,2]
[395189135,1764528644094,-500.0,0.00016973,2]
[395189137,1764528644103,-205.98492011,0.00016973,2]
[395189139,1764528644113,-500.0,0.00016973,2]
[395189141,1764528644122,-500.0,0.00016973,2]
[395189143,1764528644131,-200.00768026,0.00016973,2]
[395189145,1764528644140,-501.13898668,0.00016973,2]
[395189147,1764528644150,-500.0,0.00016973,2]
[395189149,1764528644159,-500.0,0.00016973,2]
[395189151,1764528644168,-317.71167471,0.00016973,2]
[395189153,1764528644178,-161.86969264,0.00016973,2]
[395189155,1764528644188,-500.0,0.00016973,2]
[395189156,1764528644197,-500.0,0.00016973,2]
[395189158,1764528644207,-500.0,0.00016973,2]
[395189160,1764528644218,-500.0,0.00016973,2]
[395189162,1764528644228,-501.61843285,0.00016973,2]
[395189164,1764528644237,-500.0,0.00016973,2]
[395189166,1764528644246,-415.54250471,0.00016973,2]
[395189168,1764528644257,-500.99004668,0.00016973,2]
[395189170,1764528644266,-500.0,0.00016973,2]
[395189172,1764528644276,-355.5,0.00016973,2]
[395189174,1764528644285,-500.0,0.00016973,2]
[395189176,1764528644295,-501.16592491,0.00016973,2]
[395189178,1764528644304,-504.3033742,0.00016973,2]
[395189181,1764528644318,-500.0,0.00016973,2]
[395189183,1764528644328,-500.0,0.00016973,2]
[395189185,1764528644337,-500.0,0.00016973,2]
[395189187,1764528644347,-500.0,0.00016973,2]
[395189189,1764528644356,-500.0,0.00016973,2]
[395189191,1764528644367,-500.0,0.00016973,2]
[395189192,1764528644377,-500.0,0.00016973,2]
[395189193,1764528644386,-500.0,0.00016973,2]
[395189194,1764528644396,-500.0,0.00016973,2]
[395189195,1764528644405,-206.77101016,0.00016973,2]
[395189196,1764528644416,-500.0,0.00016973,2]
[395189197,1764528644433,-500.0,0.00016973,2]
[395189198,1764528644454,-500.0,0.00016973,2]
[395189199,1764528644476,-215.92719524,0.00016973,2]
[395189200,1764528644491,-151.67385662,0.00016986,2]
[395189201,1764528644500,-248.7262478,0.00016986,2]
[395189202,1764528644509,-153.99499293,0.00016986,2]
[395189203,1764528644518,-232.81649208,0.00016986,2]
[395189204,1764528644529,-155.37437988,0.00016986,2]
[395189205,1764528644538,-165.92615372,0.00016986,2]
[395189206,1764528644547,-268.77199815,0.00016986,2]
[395189208,1764528644556,-272.71931474,0.00016986,2]
[395189210,1764528644565,-238.76764293,0.00016986,2]
[395189212,1764528644575,-155.8140463,0.00016986,2]
[395189214,1764528644584,-164.38079063,0.0001699,2]
[395189216,1764528644594,-151.0,0.00016997,2]
[395189219,1764528644603,-2243.06,0.00016998,2]
[395189221,1764528644612,-500.0,0.00016999,2]
[395189223,1764528644622,-500.0,0.00016999,2]
[395189225,1764528644632,-500.0,0.00016999,2]
[395189227,1764528644641,-500.0,0.00016999,2]